fUSD/lending_fUSD_20241221
["ID","MTS","AMOUNT","RATE_DAILY","PERIOD"]
[346157453,1734759065553,-500.0,0.00022146,2]
[346157454,1734759065563,-500.0,0.00022146,2]
[346157455,1734759065573,-500.0,0.00022146,2]
[346157456,1734759065584,-500.0,0.00022146,2]
[346157457,1734759065593,-500.0,0.00022146,2]
[346157458,1734759065603,-500.0,0.00022146,2]
[346157459,1734759065613,-500.0,0.00022146,2]
[346157460,1734759065623,-500.0,0.00022146,2]
[346157461,1734759065633,-500.0,0.00022146,2]
[346157462,1734759065643,-500.0,0.00022146,2]
[346157463,1734759065654,-500.0,0.00022146,2]
[346157464,1734759065664,-500.0,0.00022146,2]
[346157465,1734759065673,-566.85,0.00022146,2]
[346157466,1734759065683,-500.0,0.00022146,2]
[346157467,1734759065693,-500.0,0.00022146,2]
[346157468,1734759065703,-500.0,0.00022146,2]
[346157469,1734759065713,-500.0,0.00022146,2]
[346157470,1734759065722,-500.0,0.00022146,2]
[346157471,1734759065732,-500.0,0.00022146,2]
[346157472,1734759065741,-912.11,0.00022146,2]
[346157473,1734759065751,-500.0,0.00022146,2]
[346157474,1734759065761,-500.0,0.00022146,2]
[346157475,1734759065774,-500.0,0.00022146,2]
[346157476,1734759065784,-500.0,0.00022146,2]
[346157477,1734759065794,-500.0,0.00022146,2]
[346157478,1734759065804,-500.0,0.00022146,2]
[346157479,1734759065816,-500.0,0.00022146,2]
[346157480,1734759065826,-500.0,0.00022146,2]
[346157481,1734759065835,-500.0,0.00022146,2]
[346157482,1734759065845,-500.0,0.00022146,2]
[346157483,1734759065855,-900.88,0.00022146,2]
[346157484,1734759065864,-500.0,0.00022146,2]
[346157485,1734759065874,-500.0,0.00022146,2]
[346157486,1734759065884,-500.0,0.00022146,2]
[346157487,1734759065893,-506.91573396,0.00022146,2]
[346157488,1734759065903,-421.85649059,0.00022146,2]
[346157489,1734759065913,-500.0,0.00022146,2]
[346157490,1734759065923,-500.0,0.00022146,2]
[346157491,1734759065932,-500.0,0.00022146,2]
[346157492,1734759065943,-500.0,0.00022146,2]
[346157493,1734759065953,-500.0,0.00022146,2]
[346157494,1734759065963,-505.17492118,0.00022146,2]
[346157495,1734759065972,-500.0,0.00022146,2]
[346157496,1734759065982,-500.0,0.00022146,2]
[346157497,1734759065991,-258.42929278,0.00022146,2]
[346157498,1734759066002,-500.0,0.00022146,2]
[346157499,1734759066012,-500.0,0.00022146,2]
[346157500,1734759066022,-500.0,0.00022146,2]
[346157501,1734759066032,-500.0,0.00022146,2]
[346157502,1734759066042,-505.12533097,0.00022146,2]
[346157503,1734759066052,-500.0,0.00022146,2]
[346157504,1734759066062,-506.45014867,0.00022146,2]
[346157505,1734759066072,-500.0,0.00022146,2]
[346157506,1734759066082,-500.0,0.00022146,2]
[346157507,1734759066092,-186.83651209,0.00022146,2]
[346157508,1734759066102,-500.0,0.00022146,2]
[346157509,1734759066111,-789.06,0.00022146,2]
[346157510,1734759066121,-500.0,0.00022146,2]
[346157511,1734759066131,-500.0,0.00022146,2]
[346157512,1734759066141,-629.28,0.00022146,2]
[346157513,1734759066150,-500.0,0.00022146,2]
[346157514,1734759066160,-503.11966836,0.00022146,2]
[346157515,1734759066169,-500.0,0.00022146,2]
[346157516,1734759066179,-500.0,0.00022146,2]
[346157517,1734759066188,-693.72,0.00022146,2]
[346157518,1734759066197,-500.0,0.00022146,2]
[346157519,1734759066207,-500.0,0.00022146,2]
[346157520,1734759066216,-500.0,0.00022146,2]
[346157521,1734759066226,-500.0,0.00022146,2]
[346157522,1734759066235,-500.0,0.00022146,2]
[346157523,1734759066244,-500.0,0.00022146,2]
[346157524,1734759066254,-500.0,0.00022146,2]
[346157525,1734759066264,-500.0,0.00022146,2]
[346157526,1734759066273,-506.44141979,0.00022146,2]
[346157527,1734759066283,-500.0,0.00022146,2]
[346157528,1734759066292,-500.0,0.00022146,2]
[346157529,1734759066302,-500.0,0.00022146,2]
[346157530,1734759066312,-500.0,0.00022146,2]
[346157531,1734759066322,-500.0,0.00022146,2]
[346157532,1734759066332,-500.0,0.00022146,2]
[346157533,1734759066342,-500.0,0.00022146,2]
[346157534,1734759066352,-500.0,0.00022146,2]
[346157535,1734759066361,-500.0,0.00022146,2]
[346157536,1734759066371,-500.0,0.00022146,2]
[346157537,1734759066380,-500.0,0.00022146,2]
[346157538,1734759066390,-500.0,0.00022146,2]
[346157539,1734759066556,-376.25827547,0.00022146,2]
[346157540,1734759066567,-500.0,0.00022146,2]
[346157541,1734759066576,-500.0,0.00022146,2]
[346157542,1734759066587,-707.78,0.00022146,2]
[346157543,1734759066595,-504.91169525,0.00022146,2]
[346157544,1734759066605,-500.0,0.00022146,2]
[346157545,1734759066615,-500.0,0.00022146,2]
[346157546,1734759066624,-500.0,0.00022146,2]
[346157547,1734759066634,-500.0,0.00022146,2]
[346157548,1734759066643,-500.0,0.00022146,2]
[346157549,1734759066652,-500.0,0.00022146,2]
[346157550,1734759066661,-500.0,0.00022146,2]
[346157551,1734759066670,-500.0,0.00022146,2]
[346157552,1734759066679,-500.0,0.00022146,2]
[346157553,1734759066688,-500.0,0.00022146,2]
[346157554,1734759066697,-500.0,0.00022146,2]
[346157555,1734759066707,-500.0,0.00022146,2]
[346157556,1734759066717,-504.60710073,0.00022146,2]
[346157557,1734759066726,-503.00230902,0.00022146,2]
[346157558,1734759066736,-500.0,0.00022146,2]
[346157559,1734759066745,-875.68,0.00022146,2]
[346157560,1734759066755,-500.0,0.00022146,2]
[346157561,1734759066765,-500.0,0.00022146,2]
[346157562,1734759066780,-500.0,0.00022146,2]
[346157563,1734759066790,-500.0,0.00022146,2]
[346157564,1734759066799,-500.0,0.00022146,2]
[346157565,1734759066808,-500.0,0.00022146,2]
[346157566,1734759066819,-500.0,0.00022146,2]
[346157567,1734759066828,-500.0,0.00022146,2]
[346157568,1734759066838,-500.0,0.00022146,2]
[346157569,1734759066848,-500.0,0.00022146,2]
[346157570,1734759066859,-755.46,0.00022146,2]
[346157571,1734759066869,-500.0,0.00022146,2]
[346157572,1734759066879,-500.0,0.00022146,2]
[346157573,1734759066888,-500.0,0.00022146,2]
[346157574,1734759066898,-500.0,0.00022146,2]
[346157575,1734759066908,-504.72485676,0.00022146,2]
[346157576,1734759066917,-500.0,0.00022146,2]
[346157577,1734759066927,-502.84118656,0.00022146,2]
[346157578,1734759066936,-500.0,0.00022146,2]
[346157579,1734759066945,-500.0,0.00022146,2]
[346157580,1734759066955,-500.0,0.00022146,2]
[346157581,1734759066964,-500.0,0.00022146,2]
[346157582,1734759066974,-500.0,0.00022146,2]
[346157583,1734759066983,-500.0,0.00022146,2]
[346157584,1734759066993,-500.0,0.00022146,2]
[346157585,1734759067002,-500.0,0.00022146,2]
[346157586,1734759067012,-500.0,0.00022146,2]
[346157587,1734759067021,-628.81,0.00022146,2]
[346157588,1734759067031,-500.0,0.00022146,2]
[346157589,1734759067040,-500.0,0.00022146,2]
[346157590,1734759067050,-600.03,0.00022146,2]
[346157591,1734759067060,-500.0,0.00022146,2]
[346157592,1734759067071,-501.95219616,0.00022146,2]
[346157593,1734759067080,-500.0,0.00022146,2]
[346157594,1734759067090,-3032.04,0.00022146,2]
[346157595,1734759067099,-500.0,0.00022146,2]
[346157596,1734759067108,-500.0,0.00022146,2]
[346157597,1734759067118,-414.43030538,0.00022146,2]
[346157598,1734759067128,-500.0,0.00022146,2]
[346157599,1734759067138,-507.38265705,0.00022146,2]
[346157600,1734759067147,-332.13284912,0.00022146,2]
[346157601,1734759067157,-500.0,0.00022146,2]
[346157602,1734759067166,-500.0,0.00022146,2]
[346157603,1734759067176,-500.0,0.00022146,2]
[346157604,1734759067186,-500.0,0.00022146,2]
[346157605,1734759067195,-500.0,0.00022146,2]
[346157606,1734759067205,-481.25980462,0.00022146,2]
[346157607,1734759067215,-500.0,0.00022146,2]
[346157608,1734759067224,-500.0,0.00022146,2]
[346157609,1734759067233,-500.0,0.00022146,2]
[346157610,1734759067243,-500.0,0.00022146,2]
[346157611,1734759067253,-500.0,0.00022146,2]
[346157612,1734759067262,-500.0,0.00022146,2]
[346157613,1734759067271,-503.85312355,0.00022146,2]
[346157614,1734759067281,-500.0,0.00022146,2]
[346157615,1734759067290,-5569.07,0.00022146,2]
[346157616,1734759067300,-543.83030832,0.00022146,2]
[346157617,1734759067309,-500.0,0.00022146,2]
[346157618,1734759067320,-500.0,0.00022146,2]
[346157619,1734759067330,-520.69105499,0.00022146,2]
[346157620,1734759067341,-500.0,0.00022146,2]
[346157621,1734759067351,-580.05,0.00022146,2]
[346157622,1734759067360,-500.0,0.00022146,2]
[346157623,1734759067369,-644.61,0.00022146,2]
[346157624,1734759067379,-500.0,0.00022146,2]
[346157625,1734759067388,-500.0,0.00022146,2]
[346157626,1734759067397,-267.2684689,0.00022146,2]
[346157627,1734759067407,-567.86,0.00022146,2]
[346157628,1734759067417,-500.0,0.00022146,2]
[346157629,1734759067426,-3664.83,0.00022146,2]
[346157630,1734759067436,-500.0,0.00022146,2]
[346157631,1734759067445,-503.41674595,0.00022146,2]
[346157632,1734759067456,-500.0,0.00022146,2]
[346157633,1734759067465,-500.0,0.00022146,2]
[346157634,1734759067475,-500.0,0.00022146,2]
[346157635,1734759067485,-500.0,0.00022146,2]
[346157636,1734759067494,-500.0,0.00022146,2]
[346157637,1734759067504,-500.0,0.00022146,2]
[346157638,1734759067513,-779.07,0.00022146,2]
[346157639,1734759067523,-500.0,0.00022146,2]
[346157640,1734759067532,-500.0,0.00022146,2]
[346157641,1734759067542,-500.0,0.00022146,2]
[346157642,1734759067551,-500.0,0.00022146,2]
[346157643,1734759067560,-500.0,0.00022146,2]
[346157644,1734759067571,-517.42489,0.00022146,2]
[346157645,1734759067580,-500.0,0.00022146,2]
[346157646,1734759067589,-500.0,0.00022146,2]
[346157647,1734759067599,-514.84,0.00022146,2]
[346157648,1734759067608,-504.19224339,0.00022146,2]
[346157649,1734759067617,-500.0,0.00022146,2]
[346157650,1734759067626,-500.0,0.00022146,2]
[346157651,1734759067635,-500.0,0.00022146,2]
[346157652,1734759067645,-500.0,0.00022146,2]
[346157653,1734759067655,-500.0,0.00022146,2]
[346157654,1734759067664,-500.0,0.00022146,2]
[346157655,1734759067674,-500.0,0.00022146,2]
[346157656,1734759067683,-500.0,0.00022146,2]
[346157657,1734759067692,-500.0,0.00022146,2]
[346157658,1734759067701,-500.0,0.00022146,2]
[346157659,1734759067710,-500.0,0.00022146,2]
[346157660,1734759067719,-500.0,0.00022146,2]
[346157661,1734759067736,-500.0,0.00022146,2]
[346157662,1734759067746,-1022.05,0.00022146,2]
[346157663,1734759067755,-500.0,0.00022146,2]
[346157664,1734759067764,-500.0,0.00022146,2]
[346157665,1734759067780,-500.0,0.00022146,2]
[346157666,1734759067793,-500.0,0.00022146,2]
[346157667,1734759067802,-500.0,0.00022146,2]
[346157668,1734759067811,-550.64,0.00022146,2]
[346157669,1734759067825,-500.0,0.00022146,2]
[346157670,1734759067835,-500.0,0.00022146,2]
[346157671,1734759067845,-500.0,0.00022146,2]
[346157672,1734759067860,-500.0,0.00022146,2]
[346157673,1734759067869,-500.0,0.00022146,2]
[346157674,1734759067879,-500.0,0.00022146,2]
[346157675,1734759067888,-500.0,0.00022146,2]
[346157676,1734759067897,-500.0,0.00022146,2]
[346157677,1734759067907,-500.0,0.00022146,2]
[346157678,1734759067916,-500.0,0.00022146,2]
[346157679,1734759067925,-500.0,0.00022146,2]
[346157680,1734759067934,-500.0,0.00022146,2]
[346157681,1734759067943,-500.0,0.00022146,2]
[346157682,1734759067952,-500.0,0.00022146,2]
[346157683,1734759067962,-500.0,0.00022146,2]
[346157684,1734759067971,-500.0,0.00022146,2]
[346157685,1734759067980,-338.00958299,0.00022146,2]
[346157686,1734759067990,-502.22461848,0.00022146,2]
[346157687,1734759067999,-500.0,0.00022146,2]
[346157688,1734759068008,-377.74797044,0.00022146,2]
[346157689,1734759068018,-500.0,0.00022146,2]
[346157690,1734759068027,-500.0,0.00022146,2]
[346157691,1734759068036,-500.0,0.00022146,2]
[346157692,1734759068046,-500.0,0.00022146,2]
[346157693,1734759068055,-500.0,0.00022146,2]
[346157694,1734759068067,-500.0,0.00022146,2]
[346157695,1734759068076,-1495.78,0.00022162,2]
[346157696,1734759068085,-1495.78,0.00022162,2]
[346157697,1734759068095,-1495.78,0.00022162,2]
[346157698,1734759068104,-1495.78,0.00022162,2]
[346157699,1734759068113,-151.0,0.00022162,7]
[346157700,1734759068123,-226.279809,0.00022162,7]
[346157701,1734759068132,-151.725674,0.00022162,7]
[346157702,1734759068142,-151.0,0.00022162,7]
[346157703,1734759068151,-151.0,0.00022162,7]
[346157704,1734759068162,-151.0,0.00022162,7]
[346157705,1734759068171,-151.0,0.00022162,7]
[346157706,1734759068181,-151.0,0.00022162,7]
[346157707,1734759068190,-151.0,0.00022162,7]
[346157708,1734759068199,-151.0,0.00022162,7]
[346157709,1734759068212,-909104.70569802,0.00022163,2]
[346157710,1734759068227,-314.74090148,0.00022173,2]
[346157711,1734759068240,-500.0,0.00022173,2]
[346157712,1734759068252,-500.0,0.00022173,2]
[346157713,1734759068267,-500.0,0.00022173,2]
[346157714,1734759068282,-500.0,0.00022173,2]
[346157715,1734759068296,-500.0,0.00022173,2]
[346157716,1734759068310,-500.0,0.00022173,2]
[346157717,1734759068323,-697.84,0.00022173,2]
[346157718,1734759068338,-500.0,0.00022173,2]
[346157719,1734759068352,-500.0,0.00022173,2]
[346157720,1734759068367,-1002.39,0.00022173,2]
[346157721,1734759068381,-712.76,0.00022173,2]
[346157722,1734759068396,-500.0,0.00022173,2]
[346157723,1734759068412,-840.12,0.00022173,2]
[346157724,1734759068426,-970.43,0.00022173,2]
[346157725,1734759068439,-1519.74,0.00022173,2]
[346157726,1734759068453,-500.0,0.00022173,2]
[346157727,1734759068468,-615.74,0.00022173,2]
[346157728,1734759068480,-500.0,0.00022173,2]
[346157729,1734759068492,-556.24,0.00022173,2]
[346157730,1734759068504,-500.0,0.00022173,2]
[346157731,1734759068521,-500.0,0.00022173,2]
[346157732,1734759068533,-1016.17,0.00022173,2]
[346157733,1734759068543,-500.0,0.00022173,2]
[346157734,1734759068556,-500.0,0.00022173,2]
[346157735,1734759068573,-500.0,0.00022173,2]
[346157736,1734759068584,-575.14,0.00022173,2]
[346157737,1734759068597,-500.0,0.00022173,2]
[346157738,1734759068609,-500.0,0.00022173,2]
[346157739,1734759068626,-392.0,0.00022192,2]
[346157740,1734759068639,-2000.0,0.00022193,2]
[346157741,1734759068652,-200.0,0.00022193,2]
[346157742,1734759068665,-2000.0,0.00022193,2]
[346157743,1734759068677,-200.0,0.00022193,2]
[346157744,1734759068690,-2000.0,0.00022193,2]
[346157745,1734759068702,-200.0,0.00022193,2]
[346157746,1734759068715,-2000.0,0.00022193,2]
[346157747,1734759068728,-200.0,0.00022193,2]
[346157748,1734759068741,-252.3,0.000222,2]
[346157749,1734759068754,-3000.0,0.000222,2]
[346157750,1734759068767,-7510.497965,0.000222,2]
[346157751,1734759068786,-173.633,0.00022214,2]
[346157752,1734759068799,-251.233,0.00022214,2]
[346157753,1734759068812,-150.22,0.00022214,2]
[346157754,1734759068827,-1680.45338326,0.00022219,2]
[346157755,1734759068840,-1000.0,0.00022221,2]
[346157756,1734759068853,-150.0,0.00022223,2]
[346157757,1734759068868,-150.0,0.00022229,2]
[346157758,1734759068881,-150.0,0.00022229,2]
[346157759,1734759068893,-150.0,0.0002223,2]
[346157760,1734759068905,-150.0,0.00022231,2]
[346157761,1734759068918,-150.0,0.00022236,2]
[346157762,1734759068930,-150.0,0.00022237,2]
[346157763,1734759068942,-500.0,0.00022241,2]
[346157764,1734759068955,-500.0,0.00022241,2]
[346157765,1734759068969,-500.0,0.00022241,2]
[346157766,1734759068982,-500.0,0.00022241,2]
[346157767,1734759068995,-1495.78,0.00022245,2]
[346157768,1734759069007,-961.05,0.00022245,2]
[346157769,1734759069020,-2445.16,0.00022245,2]
[346157770,1734759069035,-9345.14,0.00022245,2]
[346157771,1734759069047,-955.73,0.00022245,2]
[346157772,1734759069061,-1891.22,0.00022245,2]
[346157773,1734759069077,-2361.06,0.00022245,2]
[346157774,1734759069090,-1452.04,0.00022245,2]
[346157775,1734759069101,-500.0,0.00022245,2]
[346157776,1734759069113,-500.0,0.00022245,2]
[346157777,1734759069125,-715.27,0.00022245,2]
[346157778,1734759069137,-1657.67,0.00022245,2]
[346157779,1734759069149,-3634.48,0.00022245,2]
[346157780,1734759069161,-1205.96,0.00022245,2]
[346157781,1734759069173,-4163.62,0.00022245,2]
[346157782,1734759069184,-1474.51,0.00022245,2]
[346157783,1734759069196,-500.0,0.00022246,2]
[346157784,1734759069206,-1266.08,0.00022246,2]
[346157785,1734759069217,-500.0,0.00022246,2]
[346157786,1734759069228,-571.24,0.00022246,2]
[346157787,1734759069240,-1341.15,0.00022246,2]
[346157788,1734759069251,-1202.85,0.00022246,2]
[346157789,1734759069262,-924.06,0.00022246,2]
[346157790,1734759069273,-500.0,0.00022246,2]
[346157791,1734759069284,-562.11,0.00022246,2]
[346157792,1734759069295,-513.35389525,0.00022246,2]
[346157793,1734759069306,-754.56,0.00022246,2]
[346157794,1734759069318,-500.0,0.00022246,2]
[346157795,1734759069329,-841.4,0.00022246,2]
[346157796,1734759069344,-924.14,0.00022246,2]
[346157797,1734759069355,-1008.36,0.00022246,2]
[346157798,1734759069367,-500.0,0.00022246,2]
[346157799,1734759069378,-500.0,0.00022246,2]
[346157800,1734759069389,-886.63,0.00022246,2]
[346157801,1734759069401,-1000.0,0.00022246,30]
[346157802,1734759069412,-1040.83,0.00022246,2]
[346157803,1734759069424,-500.0,0.00022246,2]
[346157804,1734759069435,-733.61,0.00022246,2]
[346157805,1734759069446,-500.0,0.00022246,2]
[346157806,1734759069458,-1365.79,0.00022246,2]
[346157807,1734759069469,-500.0,0.00022246,2]
[346157808,1734759069481,-500.0,0.00022246,2]
[346157809,1734759069497,-691.04,0.00022246,2]
[346157810,1734759069509,-977.6,0.00022246,2]
[346157811,1734759069521,-989.17,0.00022246,2]
[346157812,1734759069532,-559.12,0.00022246,2]
[346157813,1734759069543,-500.0,0.00022246,2]
[346157814,1734759069554,-1327.88,0.00022246,2]
[346157815,1734759069566,-523.95,0.00022246,2]
[346157816,1734759069577,-150.0,0.00022246,2]
[346157817,1734759069589,-788.0,0.00022246,2]
[346157818,1734759069600,-825.4,0.00022246,2]
[346157819,1734759069612,-1096.69,0.00022246,2]
[346157820,1734759069624,-911.12,0.00022246,2]
[346157821,1734759069634,-1262.28,0.00022246,2]
[346157822,1734759069646,-657.59,0.00022246,2]
[346157823,1734759069657,-1495.78,0.00022246,2]
[346157824,1734759069668,-1395.49,0.00022246,2]
[346157825,1734759069679,-815.78,0.00022246,2]
[346157826,1734759069691,-1112.89,0.00022246,2]
[346157827,1734759069702,-999.14,0.00022246,2]
[346157828,1734759069713,-1176.68,0.00022246,2]
[346157829,1734759069725,-995.98,0.00022246,2]
[346157830,1734759069737,-500.0,0.00022246,2]
[346157831,1734759069747,-1026.95,0.00022246,2]
[346157832,1734759069759,-500.0,0.00022246,2]
[346157833,1734759069772,-526.19,0.00022246,2]
[346157834,1734759069783,-500.0,0.00022246,2]
[346157835,1734759069795,-500.0,0.00022246,2]
[346157836,1734759069806,-918.11,0.00022246,2]
[346157837,1734759069820,-500.0,0.00022246,2]
[346157838,1734759069830,-591.24,0.00022246,2]
[346157839,1734759069842,-500.0,0.00022246,2]
[346157840,1734759069854,-502.08,0.00022246,2]
[346157841,1734759069866,-500.0,0.00022246,2]
[346157842,1734759069877,-752.3,0.00022246,2]
[346157843,1734759069888,-863.63,0.00022246,2]
[346157844,1734759069899,-1327.4,0.00022246,2]
[346157845,1734759069910,-500.0,0.00022246,2]
[346157846,1734759069921,-500.0,0.00022246,2]
[346157847,1734759069931,-500.0,0.00022246,2]
[346157848,1734759069943,-591.97,0.00022246,2]
[346157849,1734759069954,-500.0,0.00022246,2]
[346157850,1734759069965,-500.0,0.00022246,2]
[346157851,1734759069977,-500.0,0.00022246,2]
[346157852,1734759069988,-500.0,0.00022246,2]
[346157853,1734759069999,-500.0,0.00022246,2]
[346157854,1734759070011,-1144.41,0.00022246,2]
[346157855,1734759070022,-896.93,0.00022246,2]
[346157856,1734759070033,-500.0,0.00022246,2]
[346157857,1734759070045,-1194.17,0.00022246,2]
[346157858,1734759070056,-949.52,0.00022246,2]
[346157859,1734759070068,-1040.88,0.00022246,2]
[346157860,1734759070079,-500.71,0.00022246,2]
[346157861,1734759070091,-1194.89,0.00022246,2]
[346157862,1734759070103,-637.20796849,0.00022247,2]
[346157863,1734759070114,-500.0,0.00022247,2]
[346157864,1734759070125,-500.0,0.00022247,2]
[346157865,1734759070136,-502.1708482,0.00022247,2]
[346157866,1734759070148,-500.0,0.00022247,2]
[346157867,1734759070159,-500.0,0.00022247,2]
[346157868,1734759070171,-500.0,0.00022247,2]
[346157869,1734759070182,-500.0,0.00022247,2]
[346157870,1734759070194,-507.38680794,0.00022247,2]
[346157871,1734759070205,-500.0,0.00022247,2]
[346157872,1734759070217,-500.0,0.00022247,2]
[346157873,1734759070228,-500.0,0.00022247,2]
[346157874,1734759070240,-500.0,0.00022247,2]
[346157875,1734759070251,-500.0,0.00022247,2]
[346157876,1734759070262,-254.51234005,0.00022247,2]
[346157877,1734759070273,-500.0,0.00022247,2]
[346157878,1734759070284,-500.0,0.00022247,2]
[346157879,1734759070296,-500.0,0.00022247,2]
[346157880,1734759070309,-500.0,0.00022247,2]
[346157881,1734759070323,-503.25292231,0.00022247,2]
[346157882,1734759070338,-500.0,0.00022247,2]
[346157883,1734759070351,-500.0,0.00022247,2]
[346157884,1734759070363,-1041.83,0.00022247,2]
[346157885,1734759070376,-500.0,0.00022247,2]
[346157886,1734759070390,-500.0,0.00022247,2]
[346157887,1734759070403,-500.0,0.00022247,2]
[346157888,1734759070415,-500.0,0.00022247,2]
[346157889,1734759070428,-591.47485643,0.00022247,2]
[346157890,1734759070441,-500.0,0.00022247,2]
[346157891,1734759070454,-500.0,0.00022247,2]
[346157892,1734759070467,-500.0,0.00022247,2]
[346157893,1734759070481,-601.64,0.00022247,2]
[346157894,1734759070494,-510.18086894,0.00022247,2]
[346157895,1734759070507,-500.0,0.00022247,2]
[346157896,1734759070520,-500.0,0.00022247,2]
[346157897,1734759070533,-500.0,0.00022247,2]
[346157898,1734759070546,-500.0,0.00022247,2]
[346157899,1734759070559,-583.29,0.00022247,2]
[346157900,1734759070573,-500.0,0.00022247,2]
[346157901,1734759070586,-500.0,0.00022247,2]
[346157902,1734759070599,-500.0,0.00022247,2]
[346157903,1734759070612,-500.0,0.00022247,2]
[346157904,1734759070625,-510.15649657,0.00022247,2]
[346157905,1734759070637,-604.08399659,0.00022247,2]
[346157906,1734759070651,-500.0,0.00022247,2]
[346157907,1734759070664,-500.0,0.00022247,2]
[346157908,1734759070677,-502.40132212,0.00022247,2]
[346157909,1734759070690,-500.0,0.00022247,2]
[346157910,1734759070702,-526.09,0.00022247,2]
[346157911,1734759070715,-346.60064315,0.00022247,2]
[346157912,1734759070729,-500.0,0.00022247,2]
[346157913,1734759070742,-500.0,0.00022247,2]
[346157914,1734759070755,-500.0,0.00022247,2]
[346157915,1734759070769,-500.0,0.00022247,2]
[346157916,1734759070784,-505.01,0.00022247,2]
[346157917,1734759070797,-500.0,0.00022247,2]
[346157918,1734759070811,-500.0,0.00022247,2]
[346157919,1734759070826,-500.0,0.00022247,2]
[346157920,1734759070839,-615.3,0.00022247,2]
[346157921,1734759070853,-500.0,0.00022247,2]
[346157922,1734759070866,-540.73985475,0.00022247,2]
[346157923,1734759070881,-500.0,0.00022247,2]
[346157924,1734759070894,-500.0,0.00022247,2]
[346157925,1734759070907,-500.0,0.00022247,2]
[346157926,1734759070921,-500.0,0.00022247,2]
[346157927,1734759070934,-500.0,0.00022247,2]
[346157928,1734759070946,-500.0,0.00022247,2]
[346157929,1734759070956,-500.0,0.00022247,2]
[346157930,1734759070966,-500.0,0.00022247,2]
[346157931,1734759070977,-500.0,0.00022247,2]
[346157932,1734759070987,-500.0,0.00022247,2]
[346157933,1734759070997,-500.0,0.00022247,2]
[346157934,1734759071007,-500.0,0.00022247,2]
[346157935,1734759071017,-500.0,0.00022247,2]
[346157936,1734759071026,-521.19,0.00022247,2]
[346157937,1734759071036,-500.0,0.00022247,2]
[346157938,1734759071046,-500.0,0.00022247,2]
[346157939,1734759071056,-524.7,0.00022247,2]
[346157940,1734759071067,-500.0,0.00022247,2]
[346157941,1734759071077,-500.0,0.00022247,2]
[346157942,1734759071086,-500.0,0.00022247,2]
[346157943,1734759071096,-635.15,0.00022247,2]
[346157944,1734759071106,-500.0,0.00022247,2]
[346157945,1734759071116,-506.41118792,0.00022247,2]
[346157946,1734759071126,-500.0,0.00022247,2]
[346157947,1734759071136,-500.0,0.00022247,2]
[346157948,1734759071146,-558.08580562,0.00022247,2]
[346157949,1734759071342,-899.32,0.00022247,2]
[346157950,1734759071360,-500.0,0.00022247,2]
[346157951,1734759071370,-500.0,0.00022247,2]
[346157952,1734759071380,-567.94,0.00022247,2]